{"text_format":"1","workbook":"xlsx","n_sheets":3,"sheets":["Указания","Калкулатор","Коефициенти за риск"],"not_rendered":{"charts":0,"images":1,"macros":1,"external_links":0,"defined_names":1,"comments":0,"pivot_tables":0},"unopened":[],"bounds":{"document_bytes":16777216,"sheet_cells":100000,"rows_first":2000,"rows_last":500,"rows_between":2000,"halvings":0,"cell_chars":16384,"cell_head_chars":4096},"cells_cut":0,"cells_raw":0,"read":"whole","date_system":"1900"}

{"sheet":"Указания","index":0,"n_rows":47,"n_cols":3,"rows_kept":47,"cut":false,"hidden":false,"merged":[]}
[]
[null,null,"Инструкции за използване на калкулатор за оценка на въздействието върху здравето"]
[]
[null,null,"За да бъде изчислено въздействието върху здравето, е необходимо потребителят да въведе следните входни данни:"]
[null,null,"· „Двойка „експозиция – резултат““ – Следва да се избере от падащото меню в Поле D7 за коя от заложените двойки рисков/протективен фактор – заболяване ще се извършат изчисленията;"]
[null,null,"· „Общо население в риск“ в Поле D8 – Това е общият брой индивиди в съответната популация, напр., населението на даден град, за което се цели да се определи борят смъртни случаи, държащ се на излагането на наднормени нива на атмосферни замърсители. Потребителят следва внимателно да определени размера на населението  според това дали го интересува здравното въздействие върху цялото население или върху само част от населението. Напр., ако се търси отражението на замърсяването на въздуха върху дихателни заболявания сред деца до 5 годишна възраст в гр. София, то населението в риск, което трябва да се посочи, няма да бъде цялото население на София или всички деца в София, а само броят на децата до 5 годишна възраст. Обичайно данни за населението в риск, особено когато се касае за цели населени места, могат да бъдат получени от Националния статистически институт. Ако не бъдат въведени данни за населението в риск, част от резултатите за въздействие могат да бъдат изчислени, но не и свързаните с експозицията случаи на 100 000 население."]
[null,null,"· „Общ брой случаи на заболяването“ или „Честота на заболяването / 100 000 население“ – Следва да се прецени дали се търси ефект на експозицията върху смъртност (и от какви причини), заболеваемост (брой новорегистрирани или нововъзникнали случаи за даден период) или за честота (болестност, или брой съществуващи случи към даден момент). Обикновено тази информация може да бъде получена от Националния статистически институт, НЦОЗА или друг източник на здравна статистика. В зависимост от наличните данни, потребителят може да въведе или общ брой случаи сред населението в риск в Поле D9, или брой на случите на 100 000 население в Поле D10, като калкулаторът автоматично преизчислява броят случаи от въведената честота (ако преди това в Поле D8 е въведен брой на населението в риск) или честотата от броя случаи. "]
[null,null,"· „Базово ниво на експозиция“ в Поле D12 и „Алтернативно ниво на експозиция“ в Поле D13 – Необходимо е да се въведат стойностите на експозиция, които се сравняват. Въздействието върху здравето се изчислява във връзка с дадена разлика в експозицията – напр., по-висока спрямо по-ниска стойност. Напр., ако настоящото средногодишно ниво на ФПЧ2.5 в града е 25 mg/m3 и потребителят иска да изчисли колко по-малко смъртни случаи би имало, ако това ниво беше 5 mg/m3. Повечето експозиции са числови показатели, но замърсяването на въздуха в жилището е представено като две алтернативни категории, отразяващи неговото наличие или отсъствие – използване на замърсяващи горива и технологии за готвене и отопление или неизползваното им. Ако потребителят желае да изчисли свързаните с това замърсяване случаи, то следва да въведе числова стойност „1“ и „0“ в Поле D12 и Поле D12. В този случай, тестването на алтернативни сценарии на експозиция следва да става само чрез промяна в Поле D14 на процента на експонирани лица от населението."]
[null,null,"· „Брой експонирани лица“ или „Процент експонирани лица“ – Потребителят трябва да въведе или броят на индивидите от населението в риск, които са изложени на дадено ниво на съответния фактор в Поле D13, или техният процент от общото население в риск в Поле D14. Процентът се преизчислява автоматично при въведен брой, както и обратното (ако преди това в Поле D8 е въведен брой на населението в риск). "]
[null,null,"За всеки от резултативните показатели в панела „Свързана с експозицията здравна тежест“ се изчислява средна стойност (която условно може да се приеме за основен резултат), както и т. нар. 95% интервал на неопределеност или несигурност. Последният представлява статистически интервал, който показва диапазона от стойности, в който с голяма вероятност се очаква да се намира истинската величина на оценявания здравен ефект, като се отчита несигурността в използваните данни за риск."]
[]
[null,null,"Пример за използване на калкулатора  "]
[null,null,"В представения пример се търси приносът на експозицията на ФПЧ2.5 за общата смъртност от всички причини сред населението в размер 892 039 души, от които всички са изложени на средногодишно ниво на ФПМ2.5 от 25 mg/m3. За година са регистрирани общо 13 499 смъртни случая, от които искаме да знаем колко се дължат на тези нива на замърсяване спрямо алтернативна ситуация на по-ниско замърсяване от 5 mg/m3. "]
[null,null,"Резултатите показват, че 2 241 случая (16.6% от всички смъртни случаи или 251 случаи на 100 000 население) вероятно се държат на това, че настоящото ниво на ФПЧ2.5 спрямо алтернативното. С други думи, ако нивото на ФПЧ2.5 беше 5 mg/m3, а не 25 mg/m3, то 2 241 смъртни случая сред населението в риск биха били предотвратени. Предотвратимите случаи биха могли да варират от 1 575 до 2 871.  "]
[]
[]
[]
[]
[]
[]
[]
[]
[]
[]
[]
[]
[]
[]
[]
[]
[]
[]
[]
[null,null,"Ограничения на калкулатора "]
[null,null,"· За момента потребителят може да избира от ограничен брой комбинации от експозиция и заболяване. Изборът им е ръководен от обхвата на проекта, както и от наличието на научни доказателства за наличие на причинно-следствена връзка и риск за здравето. В бъдеще този списък ще се разширява, а самите коефициенти за риск вероятно ще се променят, поради напредъка в научните изследвания и появата на нови и по-прецизни доказателства. Акцент е поставен върху някои от най-добре изучените характеристики на градската среда, но към момента не са включени влиянието на замърсяването на питейните води и водите за къпане, други химически фактори на околната среда, поведенчески или социални фактори. "]
[null,null,"· Влиянието на факторите се отчита по отделно, без да се отчита потенциално съчетано въздействие на множество фактори или взаимодействия между тях. "]
[null,null,"· Изчисленията се основават и на допускането за затворена и непроменяща се във времето популация в различните сравнявани сценарии, без да се взимат предвид потенциално движение на населението, промяна в здравния му статус, очаквана продължителност на живота и поведение в резултат на промяна в условията на средата. В този смисъл, оценката на въздействието върху здравето може да ес приеме за е базисна моментна снимка, като съществуват по-оптимални подходи за комплексна оценка на различни сценарии за развитие на градската среда.  "]
[null,null,"· В настоящата си версия калкулаторът не изчислява икономически показатели, приравняващи изчисленото здравно въздействие към финансов еквивалент или други показатели за здравна тежест. Подобна базисна функционалност би могла да се добави в следваща версия на калкулатора.  "]
[null,null,"· При определянето на интервала на несигурност за изчисляваните здравни показатели се отчита само несигурността, свързана с коефициента за риск, но не и тази, свързана с измерването на експозицията или други допускания. Въпреки че е възможно да бъде добавена допълнителна функционалност за отчитане на други източници на несигурност, обикновено това не води до съществена промяна в интервалите на несигурност, но би затруднило потребителя при въвеждането на входни параметри.  "]
[]
[null,null,"Авторски права"]
[null,null,"Извлечения от калкулатора могат да се преглеждат, възпроизвеждат или превеждат свободно за изследователски, професионални или лични цели, но не за продажба или за използване с комерсиални цели. Всяко използване на калкулатора и резултатите от него трябва да бъде съпроводено с посочване на източника на информация и проекта, финансирал генерирането на данните. "]
[]
[null,null,"Примерено позоваване на калкулатора: Джамбов АМ, Буров А, Маркевич Я, Хелбих М, Костадинов К, Димитрова Д, Ниуенхаузен МЙ. (2026). Калкулатор за оценка на въздействието върху здравето (Версия 1) [Excel файл]. Програма за стратегически изследвания и иновации за развитие на Медицински университет - Пловдив. "]
[]
[null,null,"Отказ от отговорност"]
[null,null,"Този калкулатор за оценка на въздействието върху здравето е предоставен с информационна цел. Резултатите са ориентировъчни и се основават на налични данни, модели и допускания, които носят несигурност. Те не трябва да се използват като единствена основа за вземане на регулаторни, политически или клинични решения. Калкулаторът не изчислява ефекта върху здравето на отделни лица, а предоставя средна оценка за цялата изследвано население. Разработчиците не носят отговорност за последствията от използването или тълкуването на резултатите."]

{"sheet":"Калкулатор","index":1,"n_rows":121,"n_cols":20,"rows_kept":121,"cut":false,"hidden":false,"merged":[[27,0,29,1],[30,0,32,1],[33,0,35,1],[26,0,26,1],[8,1,9,1],[12,1,13,1],[16,0,17,0],[20,0,21,0],[8,0,9,0],[12,0,13,0],[2,2,2,4],[16,2,16,4],[5,2,5,4],[26,2,26,4],[15,2,15,4],[3,2,4,4],[25,2,25,4]]}
[]
[]
[null,null,"Калкулатор за оценка на въздействието върху здравето"]
[]
[]
["Ред за въвеждане",null,"Входни параметри"]
["№ 1","Избери от списъка --------------->","Двойка \"експозиция - резултат\"","ФПЧ2.5 – Обща смъртност ","<--- Падащ списък"]
["№ 2","Въведи число --------------------->","Общо население в риск",892039,"N"]
["№ 3","Въведи брой ИЛИ честота --->","Общ брой случаи на заболяването",13499,"N"]
[null,null,"Честота на заболяването / 100 000 население",1513.2746438216266,"N"]
["№ 4","Въведи число --------------------->","Базово ниво на експозиция",25,{"$f":"INDEX(L57:L121, MATCH(D7, F57:F121, 0))","v":"µg/m3 "}]
["№ 5","Въведи число --------------------->","Алтернативно ниво на експозиция",5,{"$f":"INDEX(L57:L121, MATCH(D7, F57:F121, 0))","v":"µg/m3 "}]
["№ 6","Въведи число ИЛИ процент ->","Брой експонирани лица",892039,"N"]
[null,null,"Процент експонирани лица",100,"%"]
[null,null,"Рисков праг",{"$f":"INDEX(K57:K121, MATCH(D7, F57:F121, 0))","v":5},{"$f":"INDEX(L57:L121, MATCH(D7, F57:F121, 0))","v":"µg/m3 "}]
[]
[null,null,"Стъпки на изчисление"]
[null,null,"Разлика в нивата на експозиция",{"$f":"ABS(D11-D12)","v":20},{"$f":"INDEX(L57:L121, MATCH(D7, F57:F121, 0))","v":"µg/m3 "}]
[null,null,"Риск",{"$f":"INDEX(G57:G121, MATCH(D7, F57:F121, 0))","v":1.095}]
[null,null,"Долна граница на риска",{"$f":"INDEX(H57:H121, MATCH(D7, F57:F121, 0))","v":1.0640000000000001}]
[null,null,"Горна граница на риска",{"$f":"INDEX(I57:I121, MATCH(D7, F57:F121, 0))","v":1.127}]
[null,null,"Оригинално мащабиране на риска",{"$f":"INDEX(J57:J121, MATCH(D7, F57:F121, 0))","v":10},{"$f":"INDEX(L57:L121, MATCH(D7, F57:F121, 0))","v":"µg/m3 "}]
[null,null,"Риск премащабиран към разликата в нивата на експозиция",{"$f":"EXP((LN(D19)/D22)*D18)","v":1.199025}]
[null,null,"Долна граница на премащабирания риск",{"$f":"EXP((LN(D20)/D22)*D18)","v":1.1320960000000002}]
[null,null,"Горна граница на премащабирания риск",{"$f":"EXP((LN(D21)/D22)*D18)","v":1.2701290000000001}]
[]
["Бележки",null,"Свързана с експозицията здравна тежест"]
["Процент на случаите на заболяване, свързан с експозицията",null,{"$f":"INDEX(S57:S121, MATCH(D7, F57:F121, 0))","v":"Популационно атрибутивна фракция (долна граница)"},{"$f":"(((D14/100)*(D24-1))/(((D14/100)*(D24-1))+1))*100","v":11.668268415399417},"%"]
[null,null,"Популационно атрибутивна фракция (средна)",{"$f":"(((D14/100)*(D23-1))/(((D14/100)*(D23-1))+1))*100","v":16.598903275578074},"%"]
[null,null,{"$f":"INDEX(T57:T121, MATCH(D7, F57:F121, 0))","v":"Популационно атрибутивна фракция (горна граница)"},{"$f":"(((D14/100)*(D25-1))/(((D14/100)*(D25-1))+1))*100","v":21.267839723366684},"%"]
["Брой на случаите на заболяване, свързан с експозицията",null,{"$f":"INDEX(O57:O121, MATCH(D7, F57:F121, 0))","v":"Свързани случаи (долна граница)"},{"$f":"(D28/100)*D9","v":1575.0995533947673},"N"]
[null,null,"Среден брой свързани случаи",{"$f":"(D29/100)*D9","v":2240.6859531702844},"N"]
[null,null,{"$f":"INDEX(P57:P121, MATCH(D7, F57:F121, 0))","v":"Свързани случаи (горна граница)"},{"$f":"(D30/100)*D9","v":2870.945684257269},"N"]
["Брой на случаите на заболяване на 100 000 души от населението, свързан с експозицията",null,{"$f":"INDEX(Q57:Q121, MATCH(D7, F57:F121, 0))","v":"Свързани случаи / 100 000 (долна граница)"},{"$f":"(D31/D8)*100000","v":176.5729473032869},"N"]
[null,null,"Среден брой свързани случаи / 100 000",{"$f":"(D32/D8)*100000","v":251.18699442180045},"N"]
[null,null,{"$f":"INDEX(R57:R121, MATCH(D7, F57:F121, 0))","v":"Свързани случаи / 100 000 (горна граница)"},{"$f":"(D33/D8)*100000","v":321.84082582233162},"N"]
[]
[]
[]
[]
[]
[]
[]
[]
[]
[]
[]
[]
[]
[]
[]
[]
[]
[]
[]
[null,null,null,null,"Експозиция","Резултат","Коефициент за риск ","Долен 95% доверителен интервал на коефициента за риск","Горен 95% доверителен интервал на коефициента за риск","Оригинално мащабиране на коефицента за риск","Начален праг за зависимостта \"експозиция-риск\" ","Мерна единица","Източник на данните за риска","Връзка с източника","Lower CI bound attrib cases label","(upper bound) CI bound attrib cases label","Lower CI bound cases / 100000 label","Upper CI bound cases / 100000 label","Lower CI bound AF label","Upper CI bound AF label"]
[null,null,null,null,"ФПЧ2.5 ","ФПЧ2.5 – Обща смъртност ",1.095,1.0640000000000001,1.127,10,5,"µg/m3 ","Orellano et al., 2024","doi: 10.3389/ijph.2024.1607683","Свързани случаи (долна граница)","Свързани случаи (горна граница)","Свързани случаи / 100 000 (долна граница)","Свързани случаи / 100 000 (горна граница)","Популационно атрибутивна фракция (долна граница)","Популационно атрибутивна фракция (горна граница)"]
[null,null,null,null,"ФПЧ2.5","ФПЧ2.5 – Смъртност от ССЗ",1.127,1.1020000000000001,1.1519999999999999,10,5,"µg/m3 ","Orellano et al., 2024","doi: 10.3389/ijph.2024.1607683","Свързани случаи (долна граница)","Свързани случаи (горна граница)","Свързани случаи / 100 000 (долна граница)","Свързани случаи / 100 000 (горна граница)","Популационно атрибутивна фракция (долна граница)","Популационно атрибутивна фракция (горна граница)"]
[null,null,null,null,"ФПЧ2.5","ФПЧ2.5 – Смъртност от респираторни заболявания",1.1359999999999999,1.079,1.1970000000000001,10,5,"µg/m3 ","Orellano et al., 2024","doi: 10.3389/ijph.2024.1607683","Свързани случаи (долна граница)","Свързани случаи (горна граница)","Свързани случаи / 100 000 (долна граница)","Свързани случаи / 100 000 (горна граница)","Популационно атрибутивна фракция (долна граница)","Популационно атрибутивна фракция (горна граница)"]
[null,null,null,null,"ФПЧ2.5","ФПЧ2.5 – Смъртност от рак на белия дроб",1.093,1.0529999999999999,1.135,10,5,"µg/m3 ","Orellano et al., 2024","doi: 10.3389/ijph.2024.1607683","Свързани случаи (долна граница)","Свързани случаи (горна граница)","Свързани случаи / 100 000 (долна граница)","Свързани случаи / 100 000 (горна граница)","Популационно атрибутивна фракция (долна граница)","Популационно атрибутивна фракция (горна граница)"]
[null,null,null,null,"ФПЧ2.5","ФПЧ2.5 – Заболеваемост от хипертония",1.17,1.05,1.3,10,5,"µg/m3 ","Forastiere et al., 2024","doi: 10.1097/EE9.0000000000000314","Свързани случаи (долна граница)","Свързани случаи (горна граница)","Свързани случаи / 100 000 (долна граница)","Свързани случаи / 100 000 (горна граница)","Популационно атрибутивна фракция (долна граница)","Популационно атрибутивна фракция (горна граница)"]
[null,null,null,null,"ФПЧ2.5","ФПЧ2.5 – Заболеваемост от ИБС",1.1299999999999999,1.05,1.22,10,5,"µg/m3 ","Forastiere et al., 2024","doi: 10.1097/EE9.0000000000000314","Свързани случаи (долна граница)","Свързани случаи (горна граница)","Свързани случаи / 100 000 (долна граница)","Свързани случаи / 100 000 (горна граница)","Популационно атрибутивна фракция (долна граница)","Популационно атрибутивна фракция (горна граница)"]
[null,null,null,null,"ФПЧ2.5","ФПЧ2.5 – Заболеваемост от инсулт",1.1599999999999999,1.1200000000000001,1.2,10,5,"µg/m3 ","Forastiere et al., 2024","doi: 10.1097/EE9.0000000000000314","Свързани случаи (долна граница)","Свързани случаи (горна граница)","Свързани случаи / 100 000 (долна граница)","Свързани случаи / 100 000 (горна граница)","Популационно атрибутивна фракция (долна граница)","Популационно атрибутивна фракция (горна граница)"]
[null,null,null,null,"ФПЧ2.5","ФПЧ2.5 – Заболеваемост от астма (деца)",1.34,1.1000000000000001,1.63,10,5,"µg/m3 ","Forastiere et al., 2024","doi: 10.1097/EE9.0000000000000314","Свързани случаи (долна граница)","Свързани случаи (горна граница)","Свързани случаи / 100 000 (долна граница)","Свързани случаи / 100 000 (горна граница)","Популационно атрибутивна фракция (долна граница)","Популационно атрибутивна фракция (горна граница)"]
[null,null,null,null,"ФПЧ2.5","ФПЧ2.5 – Заболеваемост от ХОББ",1.18,1.1299999999999999,1.23,10,5,"µg/m3 ","Forastiere et al., 2024","doi: 10.1097/EE9.0000000000000314","Свързани случаи (долна граница)","Свързани случаи (горна граница)","Свързани случаи / 100 000 (долна граница)","Свързани случаи / 100 000 (горна граница)","Популационно атрибутивна фракция (долна граница)","Популационно атрибутивна фракция (горна граница)"]
[null,null,null,null,"ФПЧ2.5","ФПЧ2.5 – Заболеваемост от диабет тип 2",1.1000000000000001,1.03,1.18,10,5,"µg/m3 ","Forastiere et al., 2024","doi: 10.1097/EE9.0000000000000314","Свързани случаи (долна граница)","Свързани случаи (горна граница)","Свързани случаи / 100 000 (долна граница)","Свързани случаи / 100 000 (горна граница)","Популационно атрибутивна фракция (долна граница)","Популационно атрибутивна фракция (горна граница)"]
[]
[null,null,null,null,"NO2 ","NO2 – Обща смъртност ",1.05,1.03,1.07,10,10,"µg/m3 ","Kasdagli et al., 2024","doi: 10.3389/ijph.2024.1607676","Свързани случаи (долна граница)","Свързани случаи (горна граница)","Свързани случаи / 100 000 (долна граница)","Свързани случаи / 100 000 (горна граница)","Популационно атрибутивна фракция (долна граница)","Популационно атрибутивна фракция (горна граница)"]
[null,null,null,null,"NO2 ","NO2 – Смъртност от ССЗ",1.05,1.03,1.08,10,10,"µg/m3 ","Kasdagli et al., 2024","doi: 10.3389/ijph.2024.1607676","Свързани случаи (долна граница)","Свързани случаи (горна граница)","Свързани случаи / 100 000 (долна граница)","Свързани случаи / 100 000 (горна граница)","Популационно атрибутивна фракция (долна граница)","Популационно атрибутивна фракция (горна граница)"]
[null,null,null,null,"NO2 ","NO2 – Смъртност от респираторни заболявания",1.05,1.03,1.07,10,10,"µg/m3 ","Kasdagli et al., 2024","doi: 10.3389/ijph.2024.1607676","Свързани случаи (долна граница)","Свързани случаи (горна граница)","Свързани случаи / 100 000 (долна граница)","Свързани случаи / 100 000 (горна граница)","Популационно атрибутивна фракция (долна граница)","Популационно атрибутивна фракция (горна граница)"]
[null,null,null,null,"NO2 ","NO2 – Смъртност от рак на белия дроб",1.07,1.04,1.1000000000000001,10,10,"µg/m3 ","Kasdagli et al., 2024","doi: 10.3389/ijph.2024.1607676","Свързани случаи (долна граница)","Свързани случаи (горна граница)","Свързани случаи / 100 000 (долна граница)","Свързани случаи / 100 000 (горна граница)","Популационно атрибутивна фракция (долна граница)","Популационно атрибутивна фракция (горна граница)"]
[null,null,null,null,"NO2 ","NO2 – Заболеваемост от астма (възрастни)",1.1000000000000001,1.01,1.21,10,10,"µg/m3 ","Kasdagli et al., 2024","doi: 10.3389/ijph.2024.1607676","Свързани случаи (долна граница)","Свързани случаи (горна граница)","Свързани случаи / 100 000 (долна граница)","Свързани случаи / 100 000 (горна граница)","Популационно атрибутивна фракция (долна граница)","Популационно атрибутивна фракция (горна граница)"]
[null,null,null,null,"NO2 ","NO2 – Заболеваемост от астма (деца)",1.1000000000000001,1.05,1.18,10,10,"µg/m3 ","Forastiere et al., 2024","doi: 10.1097/EE9.0000000000000314","Свързани случаи (долна граница)","Свързани случаи (горна граница)","Свързани случаи / 100 000 (долна граница)","Свързани случаи / 100 000 (горна граница)","Популационно атрибутивна фракция (долна граница)","Популационно атрибутивна фракция (горна граница)"]
[null,null,null,null,"NO2 ","NO2 – Заболеваемост от ОИДДП (деца)",1.0900000000000001,1.03,1.1599999999999999,10,10,"µg/m3 ","Forastiere et al., 2024","doi: 10.1097/EE9.0000000000000314","Свързани случаи (долна граница)","Свързани случаи (горна граница)","Свързани случаи / 100 000 (долна граница)","Свързани случаи / 100 000 (горна граница)","Популационно атрибутивна фракция (долна граница)","Популационно атрибутивна фракция (горна граница)"]
[]
[null,null,null,null,"Автомобилен шум (L24)","Автомобилен шум (L24) – Обща смъртност",1.0549999999999999,1.026,1.0840000000000001,10,45,"dBA","Engelmann et al., 2024 Figure 3.1","https://www.eionet.europa.eu/etcs/etc-he/products/etc-he-products/etc-he-reports/etc-he-report-2023-11-environmental-noise-health-risk-assessment-methodology-for-assessing-health-risks-using-data-reported-under-the-environmental-noise-directive","Свързани случаи (долна граница)","Свързани случаи (горна граница)","Свързани случаи / 100 000 (долна граница)","Свързани случаи / 100 000 (горна граница)","Популационно атрибутивна фракция (долна граница)","Популационно атрибутивна фракция (горна граница)"]
[null,null,null,null,"Автомобилен шум (L24)","Автомобилен шум (L24) – Заболеваемост от сърдечна недостатъчност",1.0409999999999999,1.024,1.0589999999999999,10,45,"dBA","Engelmann et al., 2024 Figure 3.6","https://www.eionet.europa.eu/etcs/etc-he/products/etc-he-products/etc-he-reports/etc-he-report-2023-11-environmental-noise-health-risk-assessment-methodology-for-assessing-health-risks-using-data-reported-under-the-environmental-noise-directive","Свързани случаи (долна граница)","Свързани случаи (горна граница)","Свързани случаи / 100 000 (долна граница)","Свързани случаи / 100 000 (горна граница)","Популационно атрибутивна фракция (долна граница)","Популационно атрибутивна фракция (горна граница)"]
[null,null,null,null,"Автомобилен шум (L24)","Автомобилен шум (L24) – Заболеваемост от хипертония",1.01,0.99,1.03,10,45,"dBA","Engelmann et al., 2024 Figure 3.3 Cohort studies","https://www.eionet.europa.eu/etcs/etc-he/products/etc-he-products/etc-he-reports/etc-he-report-2023-11-environmental-noise-health-risk-assessment-methodology-for-assessing-health-risks-using-data-reported-under-the-environmental-noise-directive","Свързани случаи (долна граница)","Свързани случаи (горна граница)","Свързани случаи / 100 000 (долна граница)","Свързани случаи / 100 000 (горна граница)","Популационно атрибутивна фракция (долна граница)","Популационно атрибутивна фракция (горна граница)"]
[null,null,null,null,"Автомобилен шум (L24)","Автомобилен шум (L24) – Смъртност от инфаркт на миокарда ",1.03,1.01,1.05,10,41,"dBA","Minkin et l., 2025, Supplementary Figure 11","https://doi.org/10.1016/j.envint.2025.109667","Свързани случаи (долна граница)","Свързани случаи (горна граница)","Свързани случаи / 100 000 (долна граница)","Свързани случаи / 100 000 (горна граница)","Популационно атрибутивна фракция (долна граница)","Популационно атрибутивна фракция (горна граница)"]
[null,null,null,null,"Автомобилен шум (L24)","Автомобилен шум (L24) – Смъртност от диабет ",1.08,0.99,1.18,10,46,"dBA","Vienneau et al., 2024, Fig. 4","https://link.springer.com/article/10.1186/s12940-024-01084-0","Свързани случаи (долна граница)","Свързани случаи (горна граница)","Свързани случаи / 100 000 (долна граница)","Свързани случаи / 100 000 (горна граница)","Популационно атрибутивна фракция (долна граница)","Популационно атрибутивна фракция (горна граница)"]
[null,null,null,null,"Автомобилен шум (L24)","Автомобилен шум (L24) – Заболеваемост от диабет",1.07,1.05,1.0900000000000001,10,46,"dBA","Vienneau et al., 2024, Fig. 4","https://link.springer.com/article/10.1186/s12940-024-01084-0","Свързани случаи (долна граница)","Свързани случаи (горна граница)","Свързани случаи / 100 000 (долна граница)","Свързани случаи / 100 000 (горна граница)","Популационно атрибутивна фракция (долна граница)","Популационно атрибутивна фракция (горна граница)"]
[null,null,null,null,"Автомобилен шум (L24)","Автомобилен шум (L24) – Заболеваемост от инфаркт на миокарда ",1.0289999999999999,1.0109999999999999,1.048,10,40,"dBA","Pershagen et al., 2025","DOI: 10.1097/EE9.0000000000000400","Свързани случаи (долна граница)","Свързани случаи (горна граница)","Свързани случаи / 100 000 (долна граница)","Свързани случаи / 100 000 (горна граница)","Популационно атрибутивна фракция (долна граница)","Популационно атрибутивна фракция (горна граница)"]
[null,null,null,null,"Автомобилен шум (L24)","Автомобилен шум (L24) – Заболеваемост от инсулт ",1.0249999999999999,1.0089999999999999,1.0409999999999999,10,40,"dBA","Pershagen et al., 2025","DOI: 10.1097/EE9.0000000000000400","Свързани случаи (долна граница)","Свързани случаи (горна граница)","Свързани случаи / 100 000 (долна граница)","Свързани случаи / 100 000 (горна граница)","Популационно атрибутивна фракция (долна граница)","Популационно атрибутивна фракция (горна граница)"]
[null,null,null,null,"Железопътен шум (L24) ","Железопътен шум (L24) – Обща смъртност",1.004,1.0009999999999999,1.0069999999999999,10,45,"dBA","Engelmann et al., 2024 Figure 3.1","https://www.eionet.europa.eu/etcs/etc-he/products/etc-he-products/etc-he-reports/etc-he-report-2023-11-environmental-noise-health-risk-assessment-methodology-for-assessing-health-risks-using-data-reported-under-the-environmental-noise-directive","Свързани случаи (долна граница)","Свързани случаи (горна граница)","Свързани случаи / 100 000 (долна граница)","Свързани случаи / 100 000 (горна граница)","Популационно атрибутивна фракция (долна граница)","Популационно атрибутивна фракция (горна граница)"]
[null,null,null,null,"Железопътен шум (L24) ","Железопътен шум (L24) – Смъртност от ИБС ",1.02,1.02,1.03,10,32,"dBA","Minkin et l., 2025, Supplementary Figure 10","https://doi.org/10.1016/j.envint.2025.109667","Свързани случаи (долна граница)","Свързани случаи (горна граница)","Свързани случаи / 100 000 (долна граница)","Свързани случаи / 100 000 (горна граница)","Популационно атрибутивна фракция (долна граница)","Популационно атрибутивна фракция (горна граница)"]
[null,null,null,null,"Железопътен шум (L24) ","Железопътен шум (L24) – Смъртност от инфаркт на миокарда ",1.02,1.01,1.03,10,32,"dBA","Minkin et l., 2025, Supplementary Figure 11","https://doi.org/10.1016/j.envint.2025.109667","Свързани случаи (долна граница)","Свързани случаи (горна граница)","Свързани случаи / 100 000 (долна граница)","Свързани случаи / 100 000 (горна граница)","Популационно атрибутивна фракция (долна граница)","Популационно атрибутивна фракция (горна граница)"]
[null,null,null,null,"Железопътен шум (L24) ","Железопътен шум (L24) – Заболеваемост от диабет ",1.02,1,1.03,10,30,"dBA","Vienneau et al., 2024, Fig. 3 recalc. only incidence studies","https://link.springer.com/article/10.1186/s12940-024-01084-0","Свързани случаи (долна граница)","Свързани случаи (горна граница)","Свързани случаи / 100 000 (долна граница)","Свързани случаи / 100 000 (горна граница)","Популационно атрибутивна фракция (долна граница)","Популационно атрибутивна фракция (горна граница)"]
[null,null,null,null,"Авиационен шум (L24) ","Авиационен шум (L24) – Смъртност от инфаркт на миокарда ",1.04,1.02,1.06,10,42,"dBA","Minkin et l., 2025, Supplementary Figure 11 recalc. no small-area studies","https://doi.org/10.1016/j.envint.2025.109667","Свързани случаи (долна граница)","Свързани случаи (горна граница)","Свързани случаи / 100 000 (долна граница)","Свързани случаи / 100 000 (горна граница)","Популационно атрибутивна фракция (долна граница)","Популационно атрибутивна фракция (горна граница)"]
[null,null,null,null,"Авиационен шум (L24) ","Авиационен шум (L24) – ЧЕстота на ИБС/инфаркт на миокарда (БГ)",1.1499999999999999,0.99,1.34,5,37.5,"dBA","Dzhambov et al., 2025 Table 2, recalc with log-Poisson for prevalence RR","https://doi.org/10.1016/j.ijheh.2024.114512","Свързани случаи (долна граница)","Свързани случаи (горна граница)","Свързани случаи / 100 000 (долна граница)","Свързани случаи / 100 000 (горна граница)","Популационно атрибутивна фракция (долна граница)","Популационно атрибутивна фракция (горна граница)"]
[]
[null,null,null,null,"NDVI (300 m) ","NDVI (300 m) – Обща смъртност",0.97,0.95,0.98,0.1,"линеен ефект","единици","Zhou et al., 2024, Fig. 3 (b)","https://doi.org/10.1016/j.scs.2024.105901","Свързани случаи (горна граница)","Свързани случаи (долна граница)","Свързани случаи / 100 000 (горна граница)","Свързани случаи / 100 000 (долна граница)","Популационно атрибутивна фракция (горна граница)","Популационно атрибутивна фракция (долна граница)"]
[null,null,null,null,"NDVI (300 m) ","NDVI (300 m) – Смъртност от ССЗ",0.98,0.96,1,0.1,"линеен ефект","единици","Zhou et al., 2024, Figure S2","https://doi.org/10.1016/j.scs.2024.105901","Свързани случаи (горна граница)","Свързани случаи (долна граница)","Свързани случаи / 100 000 (горна граница)","Свързани случаи / 100 000 (долна граница)","Популационно атрибутивна фракция (горна граница)","Популационно атрибутивна фракция (долна граница)"]
[null,null,null,null,"NDVI (300 m) ","NDVI (300 m) – Смъртност от ИБС",0.98,0.96,1,0.1,"линеен ефект","единици","Liu et al., 2022, Table 2","https://doi.org/10.1016/j.envpol.2022.118990","Свързани случаи (горна граница)","Свързани случаи (долна граница)","Свързани случаи / 100 000 (горна граница)","Свързани случаи / 100 000 (долна граница)","Популационно атрибутивна фракция (горна граница)","Популационно атрибутивна фракция (долна граница)"]
[null,null,null,null,"NDVI (300 m) ","NDVI (300 m) – Смъртност от мозъчносъдови заболявания",0.98,0.97,1,0.1,"линеен ефект","единици","Liu et al., 2022, Table 2","https://doi.org/10.1016/j.envpol.2022.118990","Свързани случаи (горна граница)","Свързани случаи (долна граница)","Свързани случаи / 100 000 (горна граница)","Свързани случаи / 100 000 (долна граница)","Популационно атрибутивна фракция (горна граница)","Популационно атрибутивна фракция (долна граница)"]
[null,null,null,null,"NDVI (300 m) ","NDVI (300 m) – Смъртност от респираторни заболявания",0.95,0.93,0.97,0.1,"линеен ефект","единици","Zhou et al., 2024, Figure S4","https://doi.org/10.1016/j.scs.2024.105901","Свързани случаи (горна граница)","Свързани случаи (долна граница)","Свързани случаи / 100 000 (горна граница)","Свързани случаи / 100 000 (долна граница)","Популационно атрибутивна фракция (горна граница)","Популационно атрибутивна фракция (долна граница)"]
[null,null,null,null,"NDVI (300 m) ","NDVI (300 m) – Смъртност от рак",0.95,0.92,0.98,0.1,"линеен ефект","единици","Zhou et al., 2024, Figure S6","https://doi.org/10.1016/j.scs.2024.105901","Свързани случаи (горна граница)","Свързани случаи (долна граница)","Свързани случаи / 100 000 (горна граница)","Свързани случаи / 100 000 (долна граница)","Популационно атрибутивна фракция (горна граница)","Популационно атрибутивна фракция (долна граница)"]
[null,null,null,null,"NDVI (250/300 m)","NDVI (250/300 m) – Честота на хипертония",0.98,0.97,0.99,0.1,"линеен ефект","единици","Zhao et al., 2022, Fig. 2","https://doi.org/10.1016/j.scitotenv.2021.152513","Свързани случаи (горна граница)","Свързани случаи (долна граница)","Свързани случаи / 100 000 (горна граница)","Свързани случаи / 100 000 (долна граница)","Популационно атрибутивна фракция (горна граница)","Популационно атрибутивна фракция (долна граница)"]
[null,null,null,null,"NDVI (300 m) ","NDVI (300 m) – Заболеваемост/честота на инсулт",0.98,0.96,0.99,0.1,"линеен ефект","единици","Liu et al., 2022, Table 2","https://doi.org/10.1016/j.envpol.2022.118990","Свързани случаи (горна граница)","Свързани случаи (долна граница)","Свързани случаи / 100 000 (горна граница)","Свързани случаи / 100 000 (долна граница)","Популационно атрибутивна фракция (горна граница)","Популационно атрибутивна фракция (долна граница)"]
[null,null,null,null,"NDVI (500 m) ","NDVI (500 m) – Преждевременно раждане",0.98,0.98,0.99,0.1,"линеен ефект","единици","Hu et al., 2021, Fig. S5","https://doi.org/10.1016/j.envres.2020.110599","Свързани случаи (горна граница)","Свързани случаи (долна граница)","Свързани случаи / 100 000 (горна граница)","Свързани случаи / 100 000 (долна граница)","Популационно атрибутивна фракция (горна граница)","Популационно атрибутивна фракция (долна граница)"]
[null,null,null,null,"Зелени площи % (300/500 m) ","Зелени площи % (300/500 m) – Обща смъртност",0.99,0.99,1,10,"линеен ефект","%","Zhou et al., 2024, Fig. 4 (b)","https://doi.org/10.1016/j.scs.2024.105901","Свързани случаи (горна граница)","Свързани случаи (долна граница)","Свързани случаи / 100 000 (горна граница)","Свързани случаи / 100 000 (долна граница)","Популационно атрибутивна фракция (горна граница)","Популационно атрибутивна фракция (долна граница)"]
[null,null,null,null,"Зелени площи % (300 m) ","Зелени площи % (300 m) – Смъртност от респираторни заболявания",0.99,0.98,0.99,10,"линеен ефект","%","Zhou et al., 2024, Figure S5","https://doi.org/10.1016/j.scs.2024.105901","Свързани случаи (горна граница)","Свързани случаи (долна граница)","Свързани случаи / 100 000 (горна граница)","Свързани случаи / 100 000 (долна граница)","Популационно атрибутивна фракция (горна граница)","Популационно атрибутивна фракция (долна граница)"]
[null,null,null,null,"Зелени площи % (300 m) ","Зелени площи % (300 m) – Смъртност от рак",0.99,0.97,1,10,"линеен ефект","%","Zhou et al., 2024, Figure S7","https://doi.org/10.1016/j.scs.2024.105901","Свързани случаи (горна граница)","Свързани случаи (долна граница)","Свързани случаи / 100 000 (горна граница)","Свързани случаи / 100 000 (долна граница)","Популационно атрибутивна фракция (горна граница)","Популационно атрибутивна фракция (долна граница)"]
[null,null,null,null,"Дървесна покривка % (300 m) ","Дървесна покривка % (300 m) – Честота на диабет (БГ)",0.81,0.67,0.97,10,"линеен ефект","%","Dzhambov et al., 2025 Table 2, recalc with log-Poisson for prevalence RR","https://doi.org/10.1016/j.ijheh.2024.114512","Свързани случаи (горна граница)","Свързани случаи (долна граница)","Свързани случаи / 100 000 (горна граница)","Свързани случаи / 100 000 (долна граница)","Популационно атрибутивна фракция (горна граница)","Популационно атрибутивна фракция (долна граница)"]
[]
[null,null,null,null,"Замърсяване на въздуха в жилището","Замърсяване на въздуха в жилището-Заболеваемост от астма",1.68,1.22,2.33,1,"1 = Използване на замърсяващи горива/технологии","1 = замърсяване / 0 = липса на замърсяване","Lee et al., 2020, Table 1, Figure S32","https://www.thelancet.com/journals/langlo/article/PIIS2214-109X(20)30343-0/fulltext","Свързани случаи (долна граница)","Свързани случаи (горна граница)","Свързани случаи / 100 000 (долна граница)","Свързани случаи / 100 000 (горна граница)","Популационно атрибутивна фракция (долна граница)","Популационно атрибутивна фракция (горна граница)"]
[null,null,null,null,"Замърсяване на въздуха в жилището","Замърсяване на въздуха в жилището-Заболеваемост от ХОББ",1.21,1.1200000000000001,1.31,1,"1 = Използване на замърсяващи горива/технологии","1 = замърсяване / 0 = липса на замърсяване","Lee et al., 2020, Table 1, Figure S32","https://www.thelancet.com/journals/langlo/article/PIIS2214-109X(20)30343-0/fulltext","Свързани случаи (долна граница)","Свързани случаи (горна граница)","Свързани случаи / 100 000 (долна граница)","Свързани случаи / 100 000 (горна граница)","Популационно атрибутивна фракция (долна граница)","Популационно атрибутивна фракция (горна граница)"]
[null,null,null,null,"Замърсяване на въздуха в жилището","Замърсяване на въздуха в жилището-Заболеваемост от ОРЗ (възрастни)",1.47,1.26,1.7,1,"1 = Използване на замърсяващи горива/технологии","1 = замърсяване / 0 = липса на замърсяване","Lee et al., 2020, Table 1, Figure S32","https://www.thelancet.com/journals/langlo/article/PIIS2214-109X(20)30343-0/fulltext","Свързани случаи (долна граница)","Свързани случаи (горна граница)","Свързани случаи / 100 000 (долна граница)","Свързани случаи / 100 000 (горна граница)","Популационно атрибутивна фракция (долна граница)","Популационно атрибутивна фракция (горна граница)"]
[null,null,null,null,"Замърсяване на въздуха в жилището","Замърсяване на въздуха в жилището-Заболеваемост от ОРЗ (деца)",1.39,1.1599999999999999,1.68,1,"1 = Използване на замърсяващи горива/технологии","1 = замърсяване / 0 = липса на замърсяване","Lee et al., 2020, Table 1, Figure S32","https://www.thelancet.com/journals/langlo/article/PIIS2214-109X(20)30343-0/fulltext","Свързани случаи (долна граница)","Свързани случаи (горна граница)","Свързани случаи / 100 000 (долна граница)","Свързани случаи / 100 000 (горна граница)","Популационно атрибутивна фракция (долна граница)","Популационно атрибутивна фракция (горна граница)"]
[null,null,null,null,"Замърсяване на въздуха в жилището","Замърсяване на въздуха в жилището-Заболеваемост от рак на белия дроб",1.39,0.99,1.96,1,"1 = Използване на замърсяващи горива/технологии","1 = замърсяване / 0 = липса на замърсяване","Lee et al., 2020, Table 1, Figure S32","https://www.thelancet.com/journals/langlo/article/PIIS2214-109X(20)30343-0/fulltext","Свързани случаи (долна граница)","Свързани случаи (горна граница)","Свързани случаи / 100 000 (долна граница)","Свързани случаи / 100 000 (горна граница)","Популационно атрибутивна фракция (долна граница)","Популационно атрибутивна фракция (горна граница)"]
[null,null,null,null,"Замърсяване на въздуха в жилището","Замърсяване на въздуха в жилището-Заболевамост/честота на туберкулоза",1.26,1.08,1.48,1,"1 = Използване на замърсяващи горива/технологии","1 = замърсяване / 0 = липса на замърсяване","Lee et al., 2020, Table 1","https://www.thelancet.com/journals/langlo/article/PIIS2214-109X(20)30343-0/fulltext","Свързани случаи (долна граница)","Свързани случаи (горна граница)","Свързани случаи / 100 000 (долна граница)","Свързани случаи / 100 000 (горна граница)","Популационно атрибутивна фракция (долна граница)","Популационно атрибутивна фракция (горна граница)"]
[null,null,null,null,"Замърсяване на въздуха в жилището","Замърсяване на въздуха в жилището-Заболеваемост от респираторни заболявания",1.31,1.25,1.37,1,"1 = Използване на замърсяващи горива/технологии","1 = замърсяване / 0 = липса на замърсяване","Lee et al., 2020, Table 1, Figure S32","https://www.thelancet.com/journals/langlo/article/PIIS2214-109X(20)30343-0/fulltext","Свързани случаи (долна граница)","Свързани случаи (горна граница)","Свързани случаи / 100 000 (долна граница)","Свързани случаи / 100 000 (горна граница)","Популационно атрибутивна фракция (долна граница)","Популационно атрибутивна фракция (горна граница)"]
[null,null,null,null,"Замърсяване на въздуха в жилището","Замърсяване на въздуха в жилището-Заболеваемост от мозъчносъдови заболявания",1.06,1.01,1.1000000000000001,1,"1 = Използване на замърсяващи горива/технологии","1 = замърсяване / 0 = липса на замърсяване","Lee et al., 2020, Table 1, Figure S32","https://www.thelancet.com/journals/langlo/article/PIIS2214-109X(20)30343-0/fulltext","Свързани случаи (долна граница)","Свързани случаи (горна граница)","Свързани случаи / 100 000 (долна граница)","Свързани случаи / 100 000 (горна граница)","Популационно атрибутивна фракция (долна граница)","Популационно атрибутивна фракция (горна граница)"]
[null,null,null,null,"Замърсяване на въздуха в жилището","Замърсяване на въздуха в жилището-Заболеваемост/честота на ИБС",1.08,1.03,1.1299999999999999,1,"1 = Използване на замърсяващи горива/технологии","1 = замърсяване / 0 = липса на замърсяване","Lee et al., 2020, Table 1, Figure S32","https://www.thelancet.com/journals/langlo/article/PIIS2214-109X(20)30343-0/fulltext","Свързани случаи (долна граница)","Свързани случаи (горна граница)","Свързани случаи / 100 000 (долна граница)","Свързани случаи / 100 000 (горна граница)","Популационно атрибутивна фракция (долна граница)","Популационно атрибутивна фракция (горна граница)"]
[null,null,null,null,"Замърсяване на въздуха в жилището","Замърсяване на въздуха в жилището-Заболеваемост от ССЗ",1.1499999999999999,1.05,1.26,1,"1 = Използване на замърсяващи горива/технологии","1 = замърсяване / 0 = липса на замърсяване","Lee et al., 2020, Table 1, Figure S32","https://www.thelancet.com/journals/langlo/article/PIIS2214-109X(20)30343-0/fulltext","Свързани случаи (долна граница)","Свързани случаи (горна граница)","Свързани случаи / 100 000 (долна граница)","Свързани случаи / 100 000 (горна граница)","Популационно атрибутивна фракция (долна граница)","Популационно атрибутивна фракция (горна граница)"]
[null,null,null,null,"Замърсяване на въздуха в жилището","Замърсяване на въздуха в жилището-Честота на ниско тегло при раждане",1.39,1.18,1.64,1,"1 = Използване на замърсяващи горива/технологии","1 = замърсяване / 0 = липса на замърсяване","Lee et al., 2020, Table 1, Figure S30","https://www.thelancet.com/journals/langlo/article/PIIS2214-109X(20)30343-0/fulltext","Свързани случаи (долна граница)","Свързани случаи (горна граница)","Свързани случаи / 100 000 (долна граница)","Свързани случаи / 100 000 (горна граница)","Популационно атрибутивна фракция (долна граница)","Популационно атрибутивна фракция (горна граница)"]
[null,null,null,null,"Замърсяване на въздуха в жилището","Замърсяване на въздуха в жилището-Честота на мъртво раждане",1.31,1.21,1.42,1,"1 = Използване на замърсяващи горива/технологии","1 = замърсяване / 0 = липса на замърсяване","Lee et al., 2020, Table 1, Figure S30","https://www.thelancet.com/journals/langlo/article/PIIS2214-109X(20)30343-0/fulltext","Свързани случаи (долна граница)","Свързани случаи (горна граница)","Свързани случаи / 100 000 (долна граница)","Свързани случаи / 100 000 (горна граница)","Популационно атрибутивна фракция (долна граница)","Популационно атрибутивна фракция (горна граница)"]
[null,null,null,null,"Замърсяване на въздуха в жилището","Замърсяване на въздуха в жилището-Обща смъртност",1.08,1.03,1.1399999999999999,1,"1 = Използване на замърсяващи горива/технологии","1 = замърсяване / 0 = липса на замърсяване","Lee et al., 2020, Table 1, Figure S31","https://www.thelancet.com/journals/langlo/article/PIIS2214-109X(20)30343-0/fulltext","Свързани случаи (долна граница)","Свързани случаи (горна граница)","Свързани случаи / 100 000 (долна граница)","Свързани случаи / 100 000 (горна граница)","Популационно атрибутивна фракция (долна граница)","Популационно атрибутивна фракция (горна граница)"]
[null,null,null,null,"Замърсяване на въздуха в жилището","Замърсяване на въздуха в жилището-Смъртност при деца под 5 години",1.24,1.05,1.47,1,"1 = Използване на замърсяващи горива/технологии","1 = замърсяване / 0 = липса на замърсяване","Lee et al., 2020, Table 1, Figure S31","https://www.thelancet.com/journals/langlo/article/PIIS2214-109X(20)30343-0/fulltext","Свързани случаи (долна граница)","Свързани случаи (горна граница)","Свързани случаи / 100 000 (долна граница)","Свързани случаи / 100 000 (горна граница)","Популационно атрибутивна фракция (долна граница)","Популационно атрибутивна фракция (горна граница)"]
[null,null,null,null,"Замърсяване на въздуха в жилището","Замърсяване на въздуха в жилището-Смъртност от ССЗ",1.07,1.03,1.1100000000000001,1,"1 = Използване на замърсяващи горива/технологии","1 = замърсяване / 0 = липса на замърсяване","Lee et al., 2020, Table 1, Figure S31","https://www.thelancet.com/journals/langlo/article/PIIS2214-109X(20)30343-0/fulltext","Свързани случаи (долна граница)","Свързани случаи (горна граница)","Свързани случаи / 100 000 (долна граница)","Свързани случаи / 100 000 (горна граница)","Популационно атрибутивна фракция (долна граница)","Популационно атрибутивна фракция (горна граница)"]
[null,null,null,null,"Замърсяване на въздуха в жилището","Замърсяване на въздуха в жилището-Смъртност от респираторни заболявания",1.27,1.01,1.58,1,"1 = Използване на замърсяващи горива/технологии","1 = замърсяване / 0 = липса на замърсяване","Lee et al., 2020, Table 1, Figure S31","https://www.thelancet.com/journals/langlo/article/PIIS2214-109X(20)30343-0/fulltext","Свързани случаи (долна граница)","Свързани случаи (горна граница)","Свързани случаи / 100 000 (долна граница)","Свързани случаи / 100 000 (горна граница)","Популационно атрибутивна фракция (долна граница)","Популационно атрибутивна фракция (горна граница)"]
[null,null,null,null,"Замърсяване на въздуха в жилището","Замърсяване на въздуха в жилището-Честота на ИБС/инфаркт на миокарда (БГ)",1.49,1.1200000000000001,2,1,"1 = Използване на замърсяващи горива/технологии","1 = замърсяване / 0 = липса на замърсяване","Dzhambov et al., 2025 Table 2, recalc with log-Poisson for prevalence RR","https://doi.org/10.1016/j.ijheh.2024.114512","Свързани случаи (долна граница)","Свързани случаи (горна граница)","Свързани случаи / 100 000 (долна граница)","Свързани случаи / 100 000 (горна граница)","Популационно атрибутивна фракция (долна граница)","Популационно атрибутивна фракция (горна граница)"]

{"sheet":"Коефициенти за риск","index":2,"n_rows":76,"n_cols":14,"rows_kept":76,"cut":false,"hidden":false,"merged":[]}
[]
[]
[null,null,null,null,"Експозиция","Резултат","Коефициент за риск ","Долен 95% доверителен интервал на коефициента за риск","Горен 95% доверителен интервал на коефициента за риск","Оригинално мащабиране на коефицента за риск","Начален праг за зависимостта \"експозиция-риск\" ","Мерна единица","Източник на данните за риска","Връзка с източника"]
[null,null,null,null,"ФПЧ2.5 ","Обща смъртност ",1.095,1.0640000000000001,1.127,10,5,"µg/m3 ","Orellano et al., 2024","https://doi.org/10.3389/ijph.2024.1607683 "]
[null,null,null,null,"ФПЧ2.5 ","Смъртност от ССЗ",1.127,1.1020000000000001,1.1519999999999999,10,5,"µg/m3 ","Orellano et al., 2024","https://doi.org/10.3389/ijph.2024.1607683 "]
[null,null,null,null,"ФПЧ2.5 ","Смъртност от респираторни заболявания",1.1359999999999999,1.079,1.1970000000000001,10,5,"µg/m3 ","Orellano et al., 2024","https://doi.org/10.3389/ijph.2024.1607683 "]
[null,null,null,null,"ФПЧ2.5 ","Смъртност от рак на белия дроб",1.093,1.0529999999999999,1.135,10,5,"µg/m3 ","Orellano et al., 2024","https://doi.org/10.3389/ijph.2024.1607683 "]
[null,null,null,null,"ФПЧ2.5 ","Заболеваемост от хипертония",1.17,1.05,1.3,10,5,"µg/m3 ","Forastiere et al., 2024","doi: 10.1097/EE9.0000000000000314"]
[null,null,null,null,"ФПЧ2.5 ","Заболеваемост от ИБС",1.1299999999999999,1.05,1.22,10,5,"µg/m3 ","Forastiere et al., 2024","doi: 10.1097/EE9.0000000000000314"]
[null,null,null,null,"ФПЧ2.5 ","Заболеваемост от инсулт",1.1599999999999999,1.1200000000000001,1.2,10,5,"µg/m3 ","Forastiere et al., 2024","doi: 10.1097/EE9.0000000000000314"]
[null,null,null,null,"ФПЧ2.5 ","Заболеваемост от астма (деца)",1.34,1.1000000000000001,1.63,10,5,"µg/m3 ","Forastiere et al., 2024","doi: 10.1097/EE9.0000000000000314"]
[null,null,null,null,"ФПЧ2.5 ","Заболеваемост от ХОББ",1.18,1.1299999999999999,1.23,10,5,"µg/m3 ","Forastiere et al., 2024","doi: 10.1097/EE9.0000000000000314"]
[null,null,null,null,"ФПЧ2.5 ","Заболеваемост от диабет тип 2",1.1000000000000001,1.03,1.18,10,5,"µg/m3 ","Forastiere et al., 2024","doi: 10.1097/EE9.0000000000000314"]
[null,null,null,null,"NO2 ","Обща смъртност ",1.05,1.03,1.07,10,10,"µg/m3 ","Kasdagli et al., 2024","https://doi.org/10.3389/ijph.2024.1607676"]
[null,null,null,null,"NO2 ","Смъртност от ССЗ",1.05,1.03,1.08,10,10,"µg/m3 ","Kasdagli et al., 2024","https://doi.org/10.3389/ijph.2024.1607676"]
[null,null,null,null,"NO2 ","Смъртност от респираторни заболявания",1.05,1.03,1.07,10,10,"µg/m3 ","Kasdagli et al., 2024","https://doi.org/10.3389/ijph.2024.1607676"]
[null,null,null,null,"NO2 ","Смъртност от рак на белия дроб",1.07,1.04,1.1000000000000001,10,10,"µg/m3 ","Kasdagli et al., 2024","https://doi.org/10.3389/ijph.2024.1607676"]
[null,null,null,null,"NO2 ","Заболеваемост от астма (възрастни)",1.1000000000000001,1.01,1.21,10,10,"µg/m3 ","Kasdagli et al., 2024","https://doi.org/10.3389/ijph.2024.1607676"]
[null,null,null,null,"NO2 ","Заболеваемост от астма (деца)",1.1000000000000001,1.05,1.18,10,10,"µg/m3 ","Forastiere et al., 2024","doi: 10.1097/EE9.0000000000000314"]
[null,null,null,null,"NO2 ","Заболеваемост от ОИДДП (деца)",1.0900000000000001,1.03,1.1599999999999999,10,10,"µg/m3 ","Forastiere et al., 2024","doi: 10.1097/EE9.0000000000000314"]
[null,null,null,null,"Автомобилен шум (L24)","Обща смъртност",1.0549999999999999,1.026,1.0840000000000001,10,45,"dBA","Engelmann et al., 2024 Figure 3.1","https://www.eionet.europa.eu/etcs/etc-he/products/etc-he-products/etc-he-reports/etc-he-report-2023-11-environmental-noise-health-risk-assessment-methodology-for-assessing-health-risks-using-data-reported-under-the-environmental-noise-directive "]
[null,null,null,null,"Железопътен шум (L24) ","Обща смъртност",1.004,1.0009999999999999,1.0069999999999999,10,45,"dBA","Engelmann et al., 2024 Figure 3.1","https://www.eionet.europa.eu/etcs/etc-he/products/etc-he-products/etc-he-reports/etc-he-report-2023-11-environmental-noise-health-risk-assessment-methodology-for-assessing-health-risks-using-data-reported-under-the-environmental-noise-directive "]
[null,null,null,null,"Автомобилен шум (L24)","Заболеваемост от сърдечна недостатъчност",1.0409999999999999,1.024,1.0589999999999999,10,45,"dBA","Engelmann et al., 2024 Figure 3.6","https://www.eionet.europa.eu/etcs/etc-he/products/etc-he-products/etc-he-reports/etc-he-report-2023-11-environmental-noise-health-risk-assessment-methodology-for-assessing-health-risks-using-data-reported-under-the-environmental-noise-directive "]
[null,null,null,null,"Автомобилен шум (L24)","Заболеваемост от хипертония",1.01,0.99,1.03,10,45,"dBA","Engelmann et al., 2024 Figure 3.3 Cohort studies","https://www.eionet.europa.eu/etcs/etc-he/products/etc-he-products/etc-he-reports/etc-he-report-2023-11-environmental-noise-health-risk-assessment-methodology-for-assessing-health-risks-using-data-reported-under-the-environmental-noise-directive "]
[null,null,null,null,"Железопътен шум (L24) ","Смъртност от ИБС ",1.02,1.02,1.03,10,32,"dBA","Minkin et l., 2025, Supplementary Figure 10","https://doi.org/10.1016/j.envint.2025.109667 "]
[null,null,null,null,"Автомобилен шум (L24)","Смъртност от инфаркт на миокарда ",1.03,1.01,1.05,10,41,"dBA","Minkin et l., 2025, Supplementary Figure 11","https://doi.org/10.1016/j.envint.2025.109667 "]
[null,null,null,null,"Железопътен шум (L24) ","Смъртност от инфаркт на миокарда ",1.02,1.01,1.03,10,32,"dBA","Minkin et l., 2025, Supplementary Figure 11","https://doi.org/10.1016/j.envint.2025.109667 "]
[null,null,null,null,"Авиационен шум (L24) ","Смъртност от инфаркт на миокарда ",1.04,1.02,1.06,10,42,"dBA","Minkin et l., 2025, Supplementary Figure 11 recalc. no small-area studies","https://doi.org/10.1016/j.envint.2025.109667 "]
[null,null,null,null,"Автомобилен шум (L24)","Смъртност от диабет ",1.08,0.99,1.18,10,46,"dBA","Vienneau et al., 2024, Fig. 4","https://link.springer.com/article/10.1186/s12940-024-01084-0 "]
[null,null,null,null,"Автомобилен шум (L24)","Заболеваемост от диабет",1.07,1.05,1.0900000000000001,10,46,"dBA","Vienneau et al., 2024, Fig. 4","https://link.springer.com/article/10.1186/s12940-024-01084-0 "]
[null,null,null,null,"Железопътен шум (L24) ","Заболеваемост от диабет ",1.02,1,1.03,10,30,"dBA","Vienneau et al., 2024, Fig. 3 recalc. only incidence studies","https://link.springer.com/article/10.1186/s12940-024-01084-0 "]
[null,null,null,null,"Автомобилен шум (L24)","Заболеваемост от инфаркт на миокарда ",1.0289999999999999,1.0109999999999999,1.048,10,40,"dBA","Pershagen et al., 2025","DOI: 10.1097/EE9.0000000000000400"]
[null,null,null,null,"Автомобилен шум (L24)","Заболеваемост от инсулт ",1.0249999999999999,1.0089999999999999,1.0409999999999999,10,40,"dBA","Pershagen et al., 2025","DOI: 10.1097/EE9.0000000000000400"]
[null,null,null,null,"Авиационен шум (L24) ","Честота ИБС/инфаркт на миокарда (БГ)",1.1499999999999999,0.99,1.34,5,37.5,"dBA","Dzhambov et al., 2025 Table 2, recalc with log-Poisson for prevalence RR","https://doi.org/10.1016/j.ijheh.2024.114512 "]
[null,null,null,null,"NDVI (300 m) ","Обща смъртност",0.97,0.95,0.98,0.1,"линеен ефект","единици","Zhou et al., 2024, Fig. 3 (b)","https://doi.org/10.1016/j.scs.2024.105901 "]
[null,null,null,null,"NDVI (300 m) ","Смъртност от ССЗ",0.98,0.96,1,0.1,"линеен ефект","единици","Zhou et al., 2024, Figure S2","https://doi.org/10.1016/j.scs.2024.105901 "]
[null,null,null,null,"NDVI (300 m) ","Смъртност от ИБС",0.98,0.96,1,0.1,"линеен ефект","единици","Liu et al., 2022, Table 2","https://doi.org/10.1016/j.envpol.2022.118990 "]
[null,null,null,null,"NDVI (300 m) ","Смъртност от мозъчносъдови заболявания",0.98,0.97,1,0.1,"линеен ефект","единици","Liu et al., 2022, Table 2","https://doi.org/10.1016/j.envpol.2022.118990 "]
[null,null,null,null,"NDVI (300 m) ","Смъртност от респираторни заболявания",0.95,0.93,0.97,0.1,"линеен ефект","единици","Zhou et al., 2024, Figure S4","https://doi.org/10.1016/j.scs.2024.105901 "]
[null,null,null,null,"NDVI (300 m) ","Смъртност от рак",0.95,0.92,0.98,0.1,"линеен ефект","единици","Zhou et al., 2024, Figure S6","https://doi.org/10.1016/j.scs.2024.105901 "]
[null,null,null,null,"NDVI (250/300 m)","Болестност от хипертония",0.98,0.97,0.99,0.1,"линеен ефект","единици","Zhao et al., 2022, Fig. 2","https://doi.org/10.1016/j.scitotenv.2021.152513"]
[null,null,null,null,"NDVI (300 m) ","Заболеваемост/честота на инсулти",0.98,0.96,0.99,0.1,"линеен ефект","единици","Liu et al., 2022, Table 2","https://doi.org/10.1016/j.envpol.2022.118990"]
[null,null,null,null,"NDVI (500 m) ","Преждевременно раждане",0.98,0.98,0.99,0.1,"линеен ефект","единици","Hu et al., 2021, Fig. S5","https://doi.org/10.1016/j.envres.2020.110599"]
[null,null,null,null,"Зелени площи % (300/500 m) ","Обща смъртност",0.99,0.99,1,10,"линеен ефект","%","Zhou et al., 2024, Fig. 4 (b)","https://doi.org/10.1016/j.scs.2024.105901"]
[null,null,null,null,"Зелени площи % (300 m) ","Смъртност от респираторни заболявания",0.99,0.98,0.99,10,"линеен ефект","%","Zhou et al., 2024, Figure S5","https://doi.org/10.1016/j.scs.2024.105901"]
[null,null,null,null,"Зелени площи % (300 m) ","Смъртност от рак",0.99,0.97,1,10,"линеен ефект","%","Zhou et al., 2024, Figure S7","https://doi.org/10.1016/j.scs.2024.105901"]
[null,null,null,null,"Дървесна покривка % (300 m) ","Болестност от диабет (БГ)",0.81,0.67,0.97,10,"линеен ефект","%","Dzhambov et al., 2025 Table 2, recalc with log-Poisson for prevalence RR","https://doi.org/10.1016/j.ijheh.2024.114512"]
[null,null,null,null,"Замърсяване на въздуха в жилището","Заболеваемост от астма",1.68,1.22,2.33,1,"1 = Използване на замърсяващи горива/технологии","1 = замърсяване / 0 = липса на замърсяване","Lee et al., 2020, Table 1, Figure S32","https://www.thelancet.com/journals/langlo/article/PIIS2214-109X(20)30343-0/fulltext "]
[null,null,null,null,"Замърсяване на въздуха в жилището","Заболеваемост от ХОББ",1.21,1.1200000000000001,1.31,1,"1 = Използване на замърсяващи горива/технологии","1 = замърсяване / 0 = липса на замърсяване","Lee et al., 2020, Table 1, Figure S32","https://www.thelancet.com/journals/langlo/article/PIIS2214-109X(20)30343-0/fulltext "]
[null,null,null,null,"Замърсяване на въздуха в жилището","Заболеваемост от ОРЗ (възрастни)",1.47,1.26,1.7,1,"1 = Използване на замърсяващи горива/технологии","1 = замърсяване / 0 = липса на замърсяване","Lee et al., 2020, Table 1, Figure S32","https://www.thelancet.com/journals/langlo/article/PIIS2214-109X(20)30343-0/fulltext "]
[null,null,null,null,"Замърсяване на въздуха в жилището","Заболеваемост от ОРЗ (деца)",1.39,1.1599999999999999,1.68,1,"1 = Използване на замърсяващи горива/технологии","1 = замърсяване / 0 = липса на замърсяване","Lee et al., 2020, Table 1, Figure S32","https://www.thelancet.com/journals/langlo/article/PIIS2214-109X(20)30343-0/fulltext "]
[null,null,null,null,"Замърсяване на въздуха в жилището","Заболеваемост от рак на белия дроб",1.39,0.99,1.96,1,"1 = Използване на замърсяващи горива/технологии","1 = замърсяване / 0 = липса на замърсяване","Lee et al., 2020, Table 1, Figure S32","https://www.thelancet.com/journals/langlo/article/PIIS2214-109X(20)30343-0/fulltext "]
[null,null,null,null,"Замърсяване на въздуха в жилището","Заболевамост/болестност от туберкулоза",1.26,1.08,1.48,1,"1 = Използване на замърсяващи горива/технологии","1 = замърсяване / 0 = липса на замърсяване","Lee et al., 2020, Table 1","https://www.thelancet.com/journals/langlo/article/PIIS2214-109X(20)30343-0/fulltext "]
[null,null,null,null,"Замърсяване на въздуха в жилището","Заболеваемост от респираторни заболявания",1.31,1.25,1.37,1,"1 = Използване на замърсяващи горива/технологии","1 = замърсяване / 0 = липса на замърсяване","Lee et al., 2020, Table 1, Figure S32","https://www.thelancet.com/journals/langlo/article/PIIS2214-109X(20)30343-0/fulltext "]
[null,null,null,null,"Замърсяване на въздуха в жилището","Заболеваемост от мозъчносъдови заболявания",1.06,1.01,1.1000000000000001,1,"1 = Използване на замърсяващи горива/технологии","1 = замърсяване / 0 = липса на замърсяване","Lee et al., 2020, Table 1, Figure S32","https://www.thelancet.com/journals/langlo/article/PIIS2214-109X(20)30343-0/fulltext "]
[null,null,null,null,"Замърсяване на въздуха в жилището","Заболеваемост/честота на ИБС",1.08,1.03,1.1299999999999999,1,"1 = Използване на замърсяващи горива/технологии","1 = замърсяване / 0 = липса на замърсяване","Lee et al., 2020, Table 1, Figure S32","https://www.thelancet.com/journals/langlo/article/PIIS2214-109X(20)30343-0/fulltext "]
[null,null,null,null,"Замърсяване на въздуха в жилището","Заболеваемост от ССЗ",1.1499999999999999,1.05,1.26,1,"1 = Използване на замърсяващи горива/технологии","1 = замърсяване / 0 = липса на замърсяване","Lee et al., 2020, Table 1, Figure S32","https://www.thelancet.com/journals/langlo/article/PIIS2214-109X(20)30343-0/fulltext "]
[null,null,null,null,"Замърсяване на въздуха в жилището","Честота на ниско тегло при раждане",1.39,1.18,1.64,1,"1 = Използване на замърсяващи горива/технологии","1 = замърсяване / 0 = липса на замърсяване","Lee et al., 2020, Table 1, Figure S30","https://www.thelancet.com/journals/langlo/article/PIIS2214-109X(20)30343-0/fulltext "]
[null,null,null,null,"Замърсяване на въздуха в жилището","Честота на мъртво раждане",1.31,1.21,1.42,1,"1 = Използване на замърсяващи горива/технологии","1 = замърсяване / 0 = липса на замърсяване","Lee et al., 2020, Table 1, Figure S30","https://www.thelancet.com/journals/langlo/article/PIIS2214-109X(20)30343-0/fulltext "]
[null,null,null,null,"Замърсяване на въздуха в жилището","Обща смъртност",1.08,1.03,1.1399999999999999,1,"1 = Използване на замърсяващи горива/технологии","1 = замърсяване / 0 = липса на замърсяване","Lee et al., 2020, Table 1, Figure S31","https://www.thelancet.com/journals/langlo/article/PIIS2214-109X(20)30343-0/fulltext "]
[null,null,null,null,"Замърсяване на въздуха в жилището","Смъртност при деца под 5 години",1.24,1.05,1.47,1,"1 = Използване на замърсяващи горива/технологии","1 = замърсяване / 0 = липса на замърсяване","Lee et al., 2020, Table 1, Figure S31","https://www.thelancet.com/journals/langlo/article/PIIS2214-109X(20)30343-0/fulltext "]
[null,null,null,null,"Замърсяване на въздуха в жилището","Смъртност от ССЗ",1.07,1.03,1.1100000000000001,1,"1 = Използване на замърсяващи горива/технологии","1 = замърсяване / 0 = липса на замърсяване","Lee et al., 2020, Table 1, Figure S31","https://www.thelancet.com/journals/langlo/article/PIIS2214-109X(20)30343-0/fulltext "]
[null,null,null,null,"Замърсяване на въздуха в жилището","Смъртност от респираторни заболявания",1.27,1.01,1.58,1,"1 = Използване на замърсяващи горива/технологии","1 = замърсяване / 0 = липса на замърсяване","Lee et al., 2020, Table 1, Figure S31","https://www.thelancet.com/journals/langlo/article/PIIS2214-109X(20)30343-0/fulltext "]
[null,null,null,null,"Замърсяване на въздуха в жилището","Честота на ИБС/инфаркт на миокарда (БГ)",1.49,1.1200000000000001,2,1,"1 = Използване на замърсяващи горива/технологии","1 = замърсяване / 0 = липса на замърсяване","Dzhambov et al., 2025 Table 2, recalc with log-Poisson for prevalence RR","https://doi.org/10.1016/j.ijheh.2024.114512"]
[]
[null,null,null,null,"Списък на съкращанията:"]
[null,null,null,null,"L24 – A-претеглено еквивалентно ниво на шума за цялото денонощие, при което към нощния шум (23:00–07:00) се добавя корекция (наказателна добавка) от 10 dB(A), а към вечерния шум (19:00–23:00) 5 dB(A)"]
[null,null,null,null,"NDVI – нормализиран диференциален вегетационен индекс (показател за степента на озеленяване)"]
[null,null,null,null,"NO₂ – азотен диоксид"]
[null,null,null,null,"БГ – България"]
[null,null,null,null,"ИБС – исхемична болест на сърцето"]
[null,null,null,null,"ОИДДП – остри инфекции на долните дихателни пътища"]
[null,null,null,null,"ОРЗ – остри респираторни заболявания"]
[null,null,null,null,"ССЗ – сърдечно-съдови заболявания"]
[null,null,null,null,"ФПЧ2.5  – фини прахови частици с диаметър до 2.5 микрометра или по-малък"]
[null,null,null,null,"ХОББ – хронична обструктивна белодробна болест"]